[Event "Titled Tuesday Blitz November 22 Early 2022"]
[White "Rakhmanov, Aleksandr"]
[Black "Sarana, Alexey"]
[WhiteFideId "4173708"]
[BlackFideId "24133795"]
[WhiteElo "2530"]
[BlackElo "2708"]
[Result "0-1"]
[Round "08"]
[TimeControl "180+1"]
[Date "2022.11.22"]
[WhiteClock "0:00:05"]
[BlackClock "0:00:41"]

1. d4 {[%clk 0:03:00]}  d5 {[%clk 0:02:59]} 2. c4 {[%clk 0:03:01]}  e6 {[%clk 0:02:59]} 3. Nc3 {[%clk 0:03:01]}  Nf6 {[%clk 0:03:00]} 4. cxd5 {[%clk 0:03:02]}  exd5 {[%clk 0:03:01]} 5. Bg5 {[%clk 0:03:02]}  Be7 {[%clk 0:03:01]} 6. e3 {[%clk 0:03:02]}  Bg4 {[%clk 0:03:02]} 7. Qb3 {[%clk 0:02:50]}  Nbd7 {[%clk 0:03:01]} 8. Nge2 {[%clk 0:02:36]}  c5 {[%clk 0:02:52]} 9. Bxf6 {[%clk 0:02:21]}  Nxf6 {[%clk 0:02:49]} 10. dxc5 {[%clk 0:02:20]}  O-O {[%clk 0:02:45]} 11. h3 {[%clk 0:02:15]}  Be6 {[%clk 0:02:45]} 12. Nd4 {[%clk 0:02:12]}  Bxc5 {[%clk 0:02:45]} 13. Rd1 {[%clk 0:02:09]}  a6 {[%clk 0:02:43]} 14. Be2 {[%clk 0:02:08]}  b5 {[%clk 0:02:42]} 15. O-O {[%clk 0:02:06]}  Qb6 {[%clk 0:02:42]} 16. Bf3 {[%clk 0:02:02]}  Rad8 {[%clk 0:02:38]} 17. Nce2 {[%clk 0:01:56]}  Nd7 {[%clk 0:02:26]} 18. Bxd5 {[%clk 0:01:45]}  Bxd4 {[%clk 0:02:16]} 19. Bxe6 {[%clk 0:01:09]}  Nc5 {[%clk 0:02:15]} 20. Bxf7+ {[%clk 0:01:05]}  Rxf7 {[%clk 0:02:12]} 21. Qc2 {[%clk 0:00:51]}  Bf6 {[%clk 0:02:12]} 22. Rxd8+ {[%clk 0:00:41]}  Bxd8 {[%clk 0:02:13]} 23. b4 {[%clk 0:00:27]}  Ne6 {[%clk 0:02:10]} 24. Rd1 {[%clk 0:00:27]}  Bh4 {[%clk 0:02:08]} 25. g3 {[%clk 0:00:24]}  Be7 {[%clk 0:02:06]} 26. a3 {[%clk 0:00:16]}  h6 {[%clk 0:02:05]} 27. h4 {[%clk 0:00:15]}  Qb7 {[%clk 0:02:00]} 28. Nd4 {[%clk 0:00:07]}  Qd5 {[%clk 0:01:53]} 29. Qc8+ {[%clk 0:00:04]}  Nf8 {[%clk 0:01:52]} 30. Qg4 {[%clk 0:00:05]}  g6 {[%clk 0:01:14]} 31. Qe2 {[%clk 0:00:04]}  h5 {[%clk 0:01:13]} 32. Qd3 {[%clk 0:00:04]}  Qa2 {[%clk 0:01:11]} 33. Qd2 {[%clk 0:00:02]}  Qxd2 {[%clk 0:01:09]} 34. Rxd2 {[%clk 0:00:02]}  Bf6 {[%clk 0:01:09]} 35. Nb3 {[%clk 0:00:02]}  Rd7 {[%clk 0:01:07]} 36. Rc2 {[%clk 0:00:01]}  Rd3 {[%clk 0:01:07]} 37. Nc5 {[%clk 0:00:01]}  Rxa3 {[%clk 0:01:07]} 38. Ne4 {[%clk 0:00:02]}  Be7 {[%clk 0:01:07]} 39. Rc7 {[%clk 0:00:02]}  Kf7 {[%clk 0:01:04]} 40. Ng5+ {[%clk 0:00:02]}  Ke8 {[%clk 0:01:04]} 41. Ne4 {[%clk 0:00:02]}  Ne6 {[%clk 0:01:03]} 42. Rb7 {[%clk 0:00:02]}  Ra4 {[%clk 0:01:00]} 43. Ra7 {[%clk 0:00:02]}  Rxb4 {[%clk 0:01:00]} 44. Nc3 {[%clk 0:00:02]}  Nc5 {[%clk 0:00:43]} 45. Nd5 {[%clk 0:00:02]}  Rb1+ {[%clk 0:00:43]} 46. Kg2 {[%clk 0:00:03]}  Bd8 {[%clk 0:00:43]} 47. Nf4 {[%clk 0:00:03]}  b4 {[%clk 0:00:41]} 48. Nxg6 {[%clk 0:00:03]}  b3 {[%clk 0:00:41]} 49. Ne5 {[%clk 0:00:04]}  b2 {[%clk 0:00:40]} 50. Nc4 {[%clk 0:00:04]}  Rg1+ {[%clk 0:00:40]} 51. Kxg1 {[%clk 0:00:05]}  b1=Q+ {[%clk 0:00:41]} 52. Kh2 {[%clk 0:00:05]}  Ne4 {[%clk 0:00:41]} 0-1


[Site "https://www.chess.com"]

[Event "Titled Tuesday Blitz November 22 Early 2022"]
[White "Reprintsev, Alexander"]
[Black "Fathy, Elameir"]
[WhiteFideId "14100541"]
[BlackFideId "10600396"]
[WhiteElo "2230"]
[BlackElo "2311"]
[Result "1-0"]
[Round "08"]
[TimeControl "180+1"]
[Date "2022.11.23"]
[WhiteClock "0:01:54"]
[BlackClock "0:01:11"]

1. e4 {[%clk 0:03:00]}  c5 {[%clk 0:03:00]} 2. b3 {[%clk 0:03:00]}  g6 {[%clk 0:02:58]} 3. Bb2 {[%clk 0:02:53]}  Nf6 {[%clk 0:02:58]} 4. e5 {[%clk 0:02:53]}  Nd5 {[%clk 0:02:59]} 5. Nc3 {[%clk 0:02:52]}  Nxc3 {[%clk 0:02:44]} 6. dxc3 {[%clk 0:02:51]}  d5 {[%clk 0:02:36]} 7. exd6 {[%clk 0:02:48]}  Qxd6 {[%clk 0:02:37]} 8. Qxd6 {[%clk 0:02:47]}  exd6 {[%clk 0:02:37]} 9. c4 {[%clk 0:02:44]}  Rg8 {[%clk 0:02:37]} 10. O-O-O {[%clk 0:02:40]}  Nc6 {[%clk 0:02:36]} 11. Ne2 {[%clk 0:02:31]}  Be6 {[%clk 0:02:30]} 12. g3 {[%clk 0:02:06]}  O-O-O {[%clk 0:02:29]} 13. Bg2 {[%clk 0:02:07]}  Kc7 {[%clk 0:02:25]} 14. Rhe1 {[%clk 0:02:05]}  h5 {[%clk 0:02:15]} 15. h4 {[%clk 0:02:05]}  Bh6+ {[%clk 0:01:42]} 16. f4 {[%clk 0:02:02]}  Rge8 {[%clk 0:01:26]} 17. Bf6 {[%clk 0:01:55]}  Rd7 {[%clk 0:01:24]} 18. Nc3 {[%clk 0:01:55]}  Rg8 {[%clk 0:01:11]} 19. Nb5+ {[%clk 0:01:54]} 1-0


[Site "https://www.chess.com"]

[Event "Titled Tuesday Blitz November 22 Early 2022"]
[White "Rosenberg, Evan S"]
[Black "Al-Tarboush, Ward"]
[WhiteFideId "2019299"]
[BlackFideId "7601450"]
[WhiteElo "2362"]
[BlackElo "2273"]
[Result "1-0"]
[Round "08"]
[TimeControl "180+1"]
[Date "2022.11.23"]
[WhiteClock "0:01:01"]
[BlackClock "0:00:10"]

1. d4 {[%clk 0:03:00]}  Nf6 {[%clk 0:02:44]} 2. Nf3 {[%clk 0:03:01]}  d5 {[%clk 0:02:41]} 3. c3 {[%clk 0:03:00]}  c5 {[%clk 0:02:40]} 4. dxc5 {[%clk 0:03:00]}  Nc6 {[%clk 0:02:38]} 5. b4 {[%clk 0:02:59]}  Bg4 {[%clk 0:02:30]} 6. e3 {[%clk 0:02:36]}  e5 {[%clk 0:02:18]} 7. Be2 {[%clk 0:02:36]}  e4 {[%clk 0:02:13]} 8. Nd4 {[%clk 0:02:36]}  Bxe2 {[%clk 0:02:10]} 9. Nxc6 {[%clk 0:02:17]}  bxc6 {[%clk 0:01:31]} 10. Qxe2 {[%clk 0:02:16]}  Be7 {[%clk 0:01:32]} 11. O-O {[%clk 0:02:15]}  O-O {[%clk 0:01:32]} 12. a4 {[%clk 0:02:07]}  Nd7 {[%clk 0:01:31]} 13. Ba3 {[%clk 0:02:05]}  f5 {[%clk 0:01:30]} 14. Nd2 {[%clk 0:01:58]}  Ne5 {[%clk 0:01:28]} 15. Rad1 {[%clk 0:01:46]}  g5 {[%clk 0:01:22]} 16. c4 {[%clk 0:01:46]}  f4 {[%clk 0:01:20]} 17. exf4 {[%clk 0:01:42]}  gxf4 {[%clk 0:01:18]} 18. cxd5 {[%clk 0:01:35]}  cxd5 {[%clk 0:01:09]} 19. Nxe4 {[%clk 0:01:25]}  f3 {[%clk 0:01:09]} 20. gxf3 {[%clk 0:01:11]}  Nxf3+ {[%clk 0:01:04]} 21. Kh1 {[%clk 0:01:11]}  Qe8 {[%clk 0:01:02]} 22. Rg1+ {[%clk 0:01:10]}  Nxg1 {[%clk 0:00:50]} 23. Rxg1+ {[%clk 0:01:11]}  Kh8 {[%clk 0:00:50]} 24. Qb2+ {[%clk 0:01:06]}  Bf6 {[%clk 0:00:30]} 25. Nxf6 {[%clk 0:01:05]}  Qd8 {[%clk 0:00:10]} 26. Nxd5+ {[%clk 0:01:01]} 1-0


[Site "https://www.chess.com"]

[Event "Titled Tuesday Blitz November 22 Early 2022"]
[White "Sargissyan, Sargis"]
[Black "Aarav Dengla"]
[WhiteFideId "13303210"]
[BlackFideId "45059756"]
[WhiteElo "2109"]
[BlackElo "2261"]
[Result "1-0"]
[Round "08"]
[TimeControl "180+1"]
[Date "2022.11.23"]
[WhiteClock "0:01:01"]
[BlackClock "0:00:12"]

1. e4 {[%clk 0:03:00]}  c5 {[%clk 0:02:58]} 2. Nf3 {[%clk 0:03:00]}  d6 {[%clk 0:02:59]} 3. d4 {[%clk 0:02:59]}  cxd4 {[%clk 0:03:00]} 4. Nxd4 {[%clk 0:03:00]}  Nf6 {[%clk 0:03:00]} 5. Nc3 {[%clk 0:03:01]}  a6 {[%clk 0:03:01]} 6. Bg5 {[%clk 0:03:01]}  e6 {[%clk 0:02:55]} 7. f4 {[%clk 0:03:02]}  h6 {[%clk 0:02:55]} 8. Bh4 {[%clk 0:03:00]}  Be7 {[%clk 0:02:55]} 9. Qf3 {[%clk 0:02:55]}  Nbd7 {[%clk 0:02:54]} 10. O-O-O {[%clk 0:02:54]}  g5 {[%clk 0:02:53]} 11. fxg5 {[%clk 0:02:51]}  hxg5 {[%clk 0:02:54]} 12. Bxg5 {[%clk 0:02:49]}  Ne5 {[%clk 0:02:54]} 13. Qe2 {[%clk 0:02:48]}  Nxe4 {[%clk 0:02:53]} 14. Nxe4 {[%clk 0:02:43]}  Bxg5+ {[%clk 0:02:52]} 15. Kb1 {[%clk 0:02:39]}  Be7 {[%clk 0:02:51]} 16. Nf3 {[%clk 0:02:37]}  Nxf3 {[%clk 0:02:36]} 17. Qxf3 {[%clk 0:02:35]}  d5 {[%clk 0:02:11]} 18. Be2 {[%clk 0:02:35]}  Qc7 {[%clk 0:01:59]} 19. Nf6+ {[%clk 0:02:33]}  Bxf6 {[%clk 0:01:57]} 20. Qxf6 {[%clk 0:02:34]}  Rg8 {[%clk 0:01:58]} 21. Bh5 {[%clk 0:02:29]}  Qe7 {[%clk 0:01:36]} 22. Qf3 {[%clk 0:02:20]}  Bd7 {[%clk 0:01:33]} 23. Rhf1 {[%clk 0:02:16]}  Rg7 {[%clk 0:01:33]} 24. Qc3 {[%clk 0:02:03]}  Rh7 {[%clk 0:01:08]} 25. Rxf7 {[%clk 0:01:39]}  Rxf7 {[%clk 0:00:46]} 26. Qh8+ {[%clk 0:01:40]}  Qf8 {[%clk 0:00:44]} 27. Bxf7+ {[%clk 0:01:40]}  Ke7 {[%clk 0:00:44]} 28. Qh4+ {[%clk 0:01:39]}  Kd6 {[%clk 0:00:43]} 29. Qf6 {[%clk 0:01:13]}  Qe7 {[%clk 0:00:36]} 30. Rxd5+ {[%clk 0:01:08]}  Kxd5 {[%clk 0:00:16]} 31. Qxe7 {[%clk 0:01:07]}  Bc8 {[%clk 0:00:17]} 32. Qd8+ {[%clk 0:01:05]}  Ke5 {[%clk 0:00:16]} 33. h4 {[%clk 0:01:05]}  a5 {[%clk 0:00:15]} 34. h5 {[%clk 0:01:04]}  Kf4 {[%clk 0:00:15]} 35. h6 {[%clk 0:01:04]}  e5 {[%clk 0:00:16]} 36. h7 {[%clk 0:01:04]}  e4 {[%clk 0:00:15]} 37. h8=Q {[%clk 0:01:02]}  e3 {[%clk 0:00:16]} 38. Qh6+ {[%clk 0:01:01]}  Kg3 {[%clk 0:00:13]} 39. Qxe3+ {[%clk 0:01:01]}  Kh2 {[%clk 0:00:12]} 40. Qh4+ {[%clk 0:01:01]} 1-0


[Site "https://www.chess.com"]

[Event "Titled Tuesday Blitz November 22 Early 2022"]
[White "Sariego Figueredo, Wilfredo"]
[Black "Lauridsen, Jesper Morch"]
[WhiteFideId "3500080"]
[BlackFideId "1401890"]
[WhiteElo "2309"]
[BlackElo "2234"]
[Result "1/2-1/2"]
[Round "08"]
[TimeControl "180+1"]
[Date "2022.11.23"]
[WhiteClock "0:00:05"]
[BlackClock "0:00:07"]

1. d4 {[%clk 0:03:00]}  Nf6 {[%clk 0:02:59]} 2. Bf4 {[%clk 0:03:00]}  d6 {[%clk 0:02:57]} 3. Nc3 {[%clk 0:02:59]}  a6 {[%clk 0:02:55]} 4. e4 {[%clk 0:02:59]}  b5 {[%clk 0:02:54]} 5. Bd3 {[%clk 0:02:56]}  Bb7 {[%clk 0:02:48]} 6. d5 {[%clk 0:02:48]}  c6 {[%clk 0:02:46]} 7. dxc6 {[%clk 0:02:39]}  Nxc6 {[%clk 0:02:45]} 8. f3 {[%clk 0:02:38]}  g6 {[%clk 0:02:40]} 9. Nge2 {[%clk 0:02:29]}  Qb6 {[%clk 0:02:38]} 10. Bg5 {[%clk 0:02:15]}  Ne5 {[%clk 0:02:15]} 11. a3 {[%clk 0:01:48]}  Bg7 {[%clk 0:02:13]} 12. Nf4 {[%clk 0:01:33]}  Qe3+ {[%clk 0:01:56]} 13. Qe2 {[%clk 0:01:31]}  Nxd3+ {[%clk 0:01:49]} 14. cxd3 {[%clk 0:01:27]}  Qxe2+ {[%clk 0:01:49]} 15. Kxe2 {[%clk 0:01:28]}  e6 {[%clk 0:01:42]} 16. g3 {[%clk 0:01:18]}  h6 {[%clk 0:01:36]} 17. Bxf6 {[%clk 0:01:16]}  Bxf6 {[%clk 0:01:37]} 18. Ng2 {[%clk 0:01:15]}  Rc8 {[%clk 0:01:34]} 19. Rac1 {[%clk 0:01:15]}  Kd7 {[%clk 0:01:31]} 20. Ne3 {[%clk 0:01:11]}  Rc7 {[%clk 0:01:29]} 21. f4 {[%clk 0:01:03]}  Rhc8 {[%clk 0:01:25]} 22. Kd2 {[%clk 0:00:50]}  Bd4 {[%clk 0:01:18]} 23. Rc2 {[%clk 0:00:45]}  a5 {[%clk 0:01:13]} 24. Rhc1 {[%clk 0:00:35]}  b4 {[%clk 0:01:13]} 25. axb4 {[%clk 0:00:35]}  axb4 {[%clk 0:01:13]} 26. Ncd1 {[%clk 0:00:35]}  Ba6 {[%clk 0:01:00]} 27. b3 {[%clk 0:00:23]}  h5 {[%clk 0:00:41]} 28. Nc4 {[%clk 0:00:15]}  d5 {[%clk 0:00:39]} 29. Ne5+ {[%clk 0:00:10]}  Bxe5 {[%clk 0:00:38]} 30. fxe5 {[%clk 0:00:09]}  Rxc2+ {[%clk 0:00:32]} 31. Rxc2 {[%clk 0:00:10]}  Rxc2+ {[%clk 0:00:32]} 32. Kxc2 {[%clk 0:00:11]}  dxe4 {[%clk 0:00:32]} 33. dxe4 {[%clk 0:00:12]}  Ke7 {[%clk 0:00:23]} 34. Ne3 {[%clk 0:00:11]}  f6 {[%clk 0:00:23]} 35. exf6+ {[%clk 0:00:09]}  Kxf6 {[%clk 0:00:23]} 36. Nc4 {[%clk 0:00:08]}  e5 {[%clk 0:00:17]} 37. Kd3 {[%clk 0:00:07]}  g5 {[%clk 0:00:17]} 38. h4 {[%clk 0:00:04]}  gxh4 {[%clk 0:00:16]} 39. gxh4 {[%clk 0:00:05]}  Ke6 {[%clk 0:00:16]} 40. Kc2 {[%clk 0:00:04]}  Bxc4 {[%clk 0:00:16]} 41. bxc4 {[%clk 0:00:05]}  Kd6 {[%clk 0:00:16]} 42. Kb2 {[%clk 0:00:05]}  Kc6 {[%clk 0:00:17]} 43. Kc2 {[%clk 0:00:04]}  Kb6 {[%clk 0:00:16]} 44. Kb2 {[%clk 0:00:04]}  Kc6 {[%clk 0:00:14]} 45. Kc2 {[%clk 0:00:04]}  Kb6 {[%clk 0:00:07]} 46. Kb2 {[%clk 0:00:05]}  Kc6 {[%clk 0:00:07]} 1/2-1/2


[Site "https://www.chess.com"]

[Event "Titled Tuesday Blitz November 22 Early 2022"]
[White "Seletsky, Grigory"]
[Black "Mesa Cruz, Juan Carlos"]
[WhiteFideId "14112191"]
[BlackFideId "6423400"]
[WhiteElo "2492"]
[BlackElo "2059"]
[Result "1-0"]
[Round "08"]
[TimeControl "180+1"]
[Date "2022.11.23"]
[WhiteClock "0:00:15"]
[BlackClock "0:00:01"]

1. e4 {[%clk 0:02:54]}  c5 {[%clk 0:02:59]} 2. Nc3 {[%clk 0:02:52]}  Nc6 {[%clk 0:02:57]} 3. d3 {[%clk 0:02:52]}  g6 {[%clk 0:02:56]} 4. Be3 {[%clk 0:02:52]}  b6 {[%clk 0:02:53]} 5. d4 {[%clk 0:02:52]}  cxd4 {[%clk 0:02:53]} 6. Bxd4 {[%clk 0:02:52]}  Nxd4 {[%clk 0:02:22]} 7. Qxd4 {[%clk 0:02:49]}  Nf6 {[%clk 0:02:22]} 8. e5 {[%clk 0:02:47]}  Nh5 {[%clk 0:02:21]} 9. O-O-O {[%clk 0:02:24]}  Bh6+ {[%clk 0:02:14]} 10. Kb1 {[%clk 0:02:22]}  Ng7 {[%clk 0:02:15]} 11. Bc4 {[%clk 0:02:14]}  O-O {[%clk 0:02:13]} 12. f4 {[%clk 0:02:13]}  Nf5 {[%clk 0:02:05]} 13. Qe4 {[%clk 0:02:11]}  Rb8 {[%clk 0:02:02]} 14. Nge2 {[%clk 0:02:01]}  Bb7 {[%clk 0:02:01]} 15. Bd5 {[%clk 0:02:02]}  Bxd5 {[%clk 0:02:00]} 16. Nxd5 {[%clk 0:01:54]}  d6 {[%clk 0:01:54]} 17. g4 {[%clk 0:01:53]}  Nh4 {[%clk 0:01:54]} 18. g5 {[%clk 0:01:46]}  Bg7 {[%clk 0:01:51]} 19. exd6 {[%clk 0:01:44]}  exd6 {[%clk 0:01:42]} 20. Nd4 {[%clk 0:01:38]}  Re8 {[%clk 0:01:36]} 21. Qd3 {[%clk 0:01:32]}  Rc8 {[%clk 0:01:33]} 22. c4 {[%clk 0:01:31]}  Qd7 {[%clk 0:01:31]} 23. h3 {[%clk 0:01:21]}  Nf5 {[%clk 0:00:54]} 24. Nxf5 {[%clk 0:01:17]}  Qxf5 {[%clk 0:00:54]} 25. Qxf5 {[%clk 0:01:02]}  gxf5 {[%clk 0:00:47]} 26. Rhe1 {[%clk 0:00:40]}  Kf8 {[%clk 0:00:11]} 27. b3 {[%clk 0:00:37]}  Re6 {[%clk 0:00:07]} 28. Kc2 {[%clk 0:00:28]}  Rce8 {[%clk 0:00:07]} 29. Kd2 {[%clk 0:00:27]}  Re4 {[%clk 0:00:06]} 30. Rxe4 {[%clk 0:00:26]}  Rxe4 {[%clk 0:00:06]} 31. Re1 {[%clk 0:00:24]}  Rd4+ {[%clk 0:00:03]} 32. Ke3 {[%clk 0:00:19]}  h6 {[%clk 0:00:02]} 33. h4 {[%clk 0:00:18]}  hxg5 {[%clk 0:00:01]} 34. hxg5 {[%clk 0:00:18]}  Re4+ {[%clk 0:00:02]} 35. Kf2 {[%clk 0:00:18]}  Rd4 {[%clk 0:00:03]} 36. Re2 {[%clk 0:00:17]}  Rd1 {[%clk 0:00:03]} 37. Ne3 {[%clk 0:00:16]}  Rh1 {[%clk 0:00:03]} 38. Nxf5 {[%clk 0:00:17]}  Rh2+ {[%clk 0:00:03]} 39. Kf3 {[%clk 0:00:17]}  Rh1 {[%clk 0:00:01]} 40. Nxd6 {[%clk 0:00:16]}  Rf1+ {[%clk 0:00:01]} 41. Kg2 {[%clk 0:00:15]} 1-0


[Site "https://www.chess.com"]

[Event "Titled Tuesday Blitz November 22 Early 2022"]
[White "Shapiro, Daniel"]
[Black "Johnson, Ben"]
[WhiteFideId "2001780"]
[BlackFideId "2010917"]
[WhiteElo "2304"]
[BlackElo "2146"]
[Result "1-0"]
[Round "08"]
[TimeControl "180+1"]
[Date "2022.11.23"]
[WhiteClock "0:00:31"]
[BlackClock "0:00:01"]

1. d4 {[%clk 0:03:00]}  Nf6 {[%clk 0:02:59]} 2. c4 {[%clk 0:03:00]}  e6 {[%clk 0:02:59]} 3. g3 {[%clk 0:03:00]}  d5 {[%clk 0:02:58]} 4. Nf3 {[%clk 0:03:00]}  dxc4 {[%clk 0:02:57]} 5. Bg2 {[%clk 0:03:00]}  c5 {[%clk 0:02:57]} 6. Qa4+ {[%clk 0:02:32]}  Bd7 {[%clk 0:02:57]} 7. Qxc4 {[%clk 0:02:32]}  b5 {[%clk 0:02:56]} 8. Qc2 {[%clk 0:02:29]}  c4 {[%clk 0:02:34]} 9. a4 {[%clk 0:02:28]}  Qc8 {[%clk 0:01:43]} 10. axb5 {[%clk 0:02:22]}  Bxb5 {[%clk 0:01:44]} 11. O-O {[%clk 0:02:05]}  Nbd7 {[%clk 0:01:26]} 12. Na3 {[%clk 0:01:53]}  Bxa3 {[%clk 0:01:21]} 13. Rxa3 {[%clk 0:01:51]}  a6 {[%clk 0:01:08]} 14. Bf4 {[%clk 0:01:51]}  O-O {[%clk 0:01:03]} 15. Bd6 {[%clk 0:01:50]}  Rd8 {[%clk 0:00:56]} 16. Re1 {[%clk 0:01:33]}  Nf8 {[%clk 0:00:26]} 17. Bb4 {[%clk 0:01:22]}  Nd5 {[%clk 0:00:25]} 18. Ba5 {[%clk 0:01:21]}  Rd7 {[%clk 0:00:17]} 19. Ne5 {[%clk 0:01:19]}  Re7 {[%clk 0:00:13]} 20. e4 {[%clk 0:01:14]}  Nf6 {[%clk 0:00:12]} 21. Rc3 {[%clk 0:01:09]}  Rb8 {[%clk 0:00:11]} 22. Nxc4 {[%clk 0:01:06]}  Qd7 {[%clk 0:00:05]} 23. Rd1 {[%clk 0:01:01]}  Rc8 {[%clk 0:00:05]} 24. Ne5 {[%clk 0:00:53]}  Rxc3 {[%clk 0:00:05]} 25. Bxc3 {[%clk 0:00:49]}  Qc8 {[%clk 0:00:04]} 26. h3 {[%clk 0:00:47]}  Rc7 {[%clk 0:00:04]} 27. Kh2 {[%clk 0:00:44]}  N8d7 {[%clk 0:00:04]} 28. f4 {[%clk 0:00:39]}  Nb6 {[%clk 0:00:04]} 29. Qf2 {[%clk 0:00:34]}  Na4 {[%clk 0:00:04]} 30. Ba5 {[%clk 0:00:31]}  Rc2 {[%clk 0:00:04]} 31. Rd2 {[%clk 0:00:32]}  Rxd2 {[%clk 0:00:01]} 32. Qxd2 {[%clk 0:00:31]} 1-0


[Site "https://www.chess.com"]

[Event "Titled Tuesday Blitz November 22 Early 2022"]
[White "Sharifov, Mekhriddin"]
[Black "Urazayev, Arystanbek"]
[WhiteFideId "14701545"]
[BlackFideId "13709810"]
[WhiteElo "2109"]
[BlackElo "2441"]
[Result "0-1"]
[Round "08"]
[TimeControl "180+1"]
[Date "2022.11.22"]
[WhiteClock "0:00:01"]
[BlackClock "0:00:13"]

1. e4 {[%clk 0:03:00]}  c5 {[%clk 0:03:00]} 2. Nf3 {[%clk 0:03:00]}  Nc6 {[%clk 0:03:01]} 3. d4 {[%clk 0:03:01]}  cxd4 {[%clk 0:03:01]} 4. Nxd4 {[%clk 0:03:02]}  e6 {[%clk 0:03:02]} 5. Nc3 {[%clk 0:03:02]}  a6 {[%clk 0:03:03]} 6. Be3 {[%clk 0:03:02]}  Nf6 {[%clk 0:03:02]} 7. Qd2 {[%clk 0:02:44]}  Bb4 {[%clk 0:03:01]} 8. f3 {[%clk 0:02:28]}  d5 {[%clk 0:03:01]} 9. a3 {[%clk 0:02:28]}  Bxc3 {[%clk 0:02:54]} 10. Qxc3 {[%clk 0:02:29]}  dxe4 {[%clk 0:02:55]} 11. O-O-O {[%clk 0:02:17]}  Nd5 {[%clk 0:02:53]} 12. Nxc6 {[%clk 0:02:13]}  bxc6 {[%clk 0:02:53]} 13. Qxg7 {[%clk 0:02:13]}  Qf6 {[%clk 0:02:14]} 14. Qxf6 {[%clk 0:02:12]}  Nxf6 {[%clk 0:02:15]} 15. Bd4 {[%clk 0:02:13]}  Ke7 {[%clk 0:02:14]} 16. Bc5+ {[%clk 0:02:13]}  Ke8 {[%clk 0:02:14]} 17. Bd4 {[%clk 0:02:14]}  Ke7 {[%clk 0:02:14]} 18. fxe4 {[%clk 0:01:53]}  Rg8 {[%clk 0:02:12]} 19. Be2 {[%clk 0:01:43]}  Nd7 {[%clk 0:02:12]} 20. e5 {[%clk 0:01:31]}  c5 {[%clk 0:02:08]} 21. Bf3 {[%clk 0:01:31]}  Rb8 {[%clk 0:02:08]} 22. Bc3 {[%clk 0:01:31]}  Bb7 {[%clk 0:02:09]} 23. Rd6 {[%clk 0:01:15]}  Bxf3 {[%clk 0:02:08]} 24. gxf3 {[%clk 0:01:16]}  f6 {[%clk 0:01:57]} 25. Rhd1 {[%clk 0:01:15]}  Nxe5 {[%clk 0:01:54]} 26. Rxa6 {[%clk 0:01:09]}  Kf7 {[%clk 0:01:27]} 27. f4 {[%clk 0:00:52]}  Nf3 {[%clk 0:01:04]} 28. Ra7+ {[%clk 0:00:39]}  Kg6 {[%clk 0:00:59]} 29. h3 {[%clk 0:00:27]}  Kf5 {[%clk 0:00:41]} 30. Rxh7 {[%clk 0:00:23]}  Kxf4 {[%clk 0:00:40]} 31. Bxf6 {[%clk 0:00:23]}  e5 {[%clk 0:00:37]} 32. Be7 {[%clk 0:00:20]}  Rbc8 {[%clk 0:00:25]} 33. Rf7+ {[%clk 0:00:19]}  Ke4 {[%clk 0:00:25]} 34. Rf1 {[%clk 0:00:15]}  Nd4 {[%clk 0:00:25]} 35. Re1+ {[%clk 0:00:15]}  Kd5 {[%clk 0:00:25]} 36. Bf6 {[%clk 0:00:14]}  Rce8 {[%clk 0:00:23]} 37. Rd7+ {[%clk 0:00:11]}  Kc6 {[%clk 0:00:23]} 38. Rh7 {[%clk 0:00:11]}  Rg2 {[%clk 0:00:22]} 39. c3 {[%clk 0:00:09]}  Nf3 {[%clk 0:00:19]} 40. Rd1 {[%clk 0:00:07]}  e4 {[%clk 0:00:19]} 41. Rh6 {[%clk 0:00:07]}  Kb5 {[%clk 0:00:19]} 42. b3 {[%clk 0:00:02]}  Re6 {[%clk 0:00:19]} 43. c4+ {[%clk 0:00:03]}  Kc6 {[%clk 0:00:19]} 44. Bg7 {[%clk 0:00:02]}  Rgg6 {[%clk 0:00:18]} 45. Rxg6 {[%clk 0:00:02]}  Rxg6 {[%clk 0:00:19]} 46. Bc3 {[%clk 0:00:03]}  e3 {[%clk 0:00:19]} 47. Kc2 {[%clk 0:00:03]}  e2 {[%clk 0:00:19]} 48. Rb1 {[%clk 0:00:03]}  Rd6 {[%clk 0:00:18]} 49. b4 {[%clk 0:00:03]}  Re6 {[%clk 0:00:18]} 50. b5+ {[%clk 0:00:03]}  Kb6 {[%clk 0:00:18]} 51. Be1 {[%clk 0:00:03]}  Re3 {[%clk 0:00:17]} 52. a4 {[%clk 0:00:03]}  Ra3 {[%clk 0:00:16]} 53. a5+ {[%clk 0:00:04]}  Kc7 {[%clk 0:00:17]} 54. a6 {[%clk 0:00:03]}  Kb6 {[%clk 0:00:16]} 55. h4 {[%clk 0:00:02]}  Nd4+ {[%clk 0:00:15]} 56. Kd2 {[%clk 0:00:02]}  Rh3 {[%clk 0:00:12]} 57. Ra1 {[%clk 0:00:01]}  Nb3+ {[%clk 0:00:12]} 58. Kxe2 {[%clk 0:00:01]}  Nxa1 {[%clk 0:00:13]} 0-1


[Site "https://www.chess.com"]